bitfinex-derivatives/quotes_BTCF0:USTF0_20250719
["timestamp","ask_amount","ask_price","bid_price","bid_amount"]
[1752885727526,0.35783195,118070.0,118060.0,1.43069784]
[1752885729429,0.35783195,118070.0,118060.0,1.06989784]
[1752885731026,0.35783195,118070.0,118060.0,1.43069784]
[1752885731826,0.35783195,118070.0,118060.0,1.06989784]
[1752885732130,0.35783195,118070.0,118060.0,1.43069784]
[1752885732632,0.35783195,118070.0,118060.0,1.72589784]
[1752885734636,0.35783195,118070.0,118060.0,1.43525819]
[1752885734825,0.35783195,118070.0,118060.0,1.72589784]
[1752885737536,0.29693,118070.0,118060.0,1.72589784]
[1752885737837,0.29693,118070.0,118060.0,1.43525819]
[1752885738034,0.29693,118070.0,118060.0,1.72589784]
[1752885740638,0.37307447,118070.0,118060.0,1.72589784]
[1752885740836,0.29693,118070.0,118060.0,1.72589784]
[1752885742439,0.33351507,118070.0,118060.0,1.72589784]
[1752885743339,0.33351507,118070.0,118060.0,1.70662228]
[1752885743736,0.25007507,118070.0,118060.0,1.70662228]
[1752885745342,0.25007507,118070.0,118060.0,1.41598263]
[1752885745541,0.25007507,118070.0,118060.0,1.70662228]
[1752885749342,0.18918,118070.0,118060.0,1.70662228]
[1752885749738,0.25015143,118070.0,118060.0,1.70662228]
[1752885752448,0.26532447,118070.0,118060.0,1.70662228]
[1752885754438,0.33550447,118070.0,118060.0,1.70662228]
[1752885756544,0.35873447,118070.0,118060.0,1.70662228]
[1752885757740,0.28259,118070.0,118060.0,1.70662228]
[1752885758444,0.33559903,118070.0,118060.0,1.70662228]
[1752885761054,0.25936,118070.0,118060.0,1.70662228]
[1752885761454,0.18918,118070.0,118060.0,1.70662228]
[1752885762051,0.26541797,118070.0,118060.0,1.70662228]
[1752885762452,0.25017017,118070.0,118060.0,1.70662228]
[1752885763258,0.18918,118070.0,118060.0,1.70662228]
[1752885764755,0.18918,118070.0,118060.0,1.41598263]
[1752885764959,0.18918,118070.0,118060.0,1.70662228]
[1752885766059,0.26541797,118070.0,118060.0,1.70662228]
[1752885768055,0.26541797,118070.0,118060.0,1.41598263]
[1752885768264,0.26541797,118070.0,118060.0,1.70662228]
[1752885769263,0.26541797,118070.0,118060.0,1.41598263]
[1752885769560,0.26541797,118070.0,118060.0,1.70662228]
[1752885771953,0.62623762,118070.0,118060.0,1.70662228]
[1752885772764,0.62623762,118070.0,118060.0,1.6873464]
[1752885772958,0.32035638,118070.0,118060.0,1.6873464]
[1752885775564,0.32035638,118070.0,118060.0,1.39670675]
[1752885775863,0.34389638,118070.0,118060.0,1.6873464]
[1752885778459,0.34389638,118070.0,118060.0,1.39670675]
[1752885778667,0.64668603,118070.0,118060.0,1.6873464]
[1752885778859,0.64668603,118070.0,118060.0,1.3870664]
[1752885779064,1.19199982,118070.0,118060.0,0.45731675]
[1752885779266,1.19199982,118070.0,118060.0,0.44485675]
[1752885779567,1.11576185,118070.0,118060.0,0.44485675]
[1752885779970,1.11576185,118070.0,118060.0,0.14965675]
[1752885780369,1.22248809,118070.0,118060.0,0.14965675]
[1752885780668,1.11576185,118070.0,118060.0,0.14965675]
[1752885781070,1.11576185,118070.0,118060.0,0.13037833]
[1752885781268,1.22244533,118070.0,118060.0,0.13037833]
[1752885784572,1.39184533,118070.0,118060.0,0.13037833]
[1752885785373,1.39184533,118070.0,118060.0,0.11145674]
[1752885785574,1.68248498,118070.0,118060.0,0.11145674]
[1752885785774,1.46798051,118070.0,118060.0,0.11145674]
[1752885786073,1.37823887,118070.0,118060.0,0.11145674]
[1752885786476,0.4357165,118060.0,118050.0,0.27698233]
[1752885786670,1.40965615,118060.0,118050.0,0.27698233]
[1752885787578,1.40965615,118060.0,118050.0,0.27798233]
[1752885787766,1.40965615,118060.0,118050.0,0.27898233]
[1752885788671,1.40965615,118060.0,118050.0,0.19433473]
[1752885788868,1.7002958,118060.0,118050.0,0.19433473]
[1752885789177,1.40965615,118060.0,118050.0,0.19433473]
[1752885789574,1.40965615,118060.0,118050.0,0.1712893]
[1752885789774,1.40965615,118060.0,118050.0,0.213614]
[1752885790377,1.8697118,118060.0,118050.0,0.002]
[1752885790577,1.8697118,118060.0,118050.0,0.00056906]
[1752885790972,1.8697118,118060.0,118050.0,0.00011832]
[1752885791172,1.8697118,118060.0,118050.0,0.16941922]
[1752885791572,1.8697118,118060.0,118050.0,0.00011832]
[1752885791780,0.4357309,118050.0,118040.0,0.2539601]
[1752885791973,1.52535011,118050.0,118040.0,0.2539601]
[1752885792777,1.49490819,118050.0,118040.0,0.2539601]
[1752885792978,1.49790819,118050.0,118040.0,0.2539601]
[1752885793178,1.49790819,118050.0,118040.0,0.1693035]
[1752885793372,1.42185759,118050.0,118040.0,0.1693035]
[1752885793778,0.1693295,118030.0,118020.0,0.2729824]
[1752885793970,1.17156903,118030.0,118020.0,0.2729824]
[1752885794478,1.17156903,118030.0,118020.0,0.29912547]
[1752885794678,1.17156903,118030.0,118020.0,0.31088547]
[1752885795079,0.88997417,118030.0,118020.0,0.4114324]
[1752885795279,1.18061382,118030.0,118020.0,0.4114324]
[1752885796481,1.25665089,118030.0,118020.0,0.4114324]
[1752885797180,1.18061382,118030.0,118020.0,0.4114324]
[1752885798081,1.25665089,118030.0,118020.0,0.4114324]
[1752885800386,0.96601124,118030.0,118020.0,0.4114324]
[1752885800684,1.25665089,118030.0,118020.0,0.4114324]
[1752885801278,0.1693439,118020.0,118010.0,0.02644015]
[1752885801480,0.51888755,118010.0,118000.0,0.2117073]
[1752885801682,1.1703272,118010.0,118000.0,0.2658104]
[1752885801985,1.1703272,118010.0,118000.0,0.68314005]
[1752885801986,0.767171,118010.0,118000.0,0.68314005]
[1752885802285,1.127971,118010.0,118000.0,0.3925004]
[1752885802583,1.127971,118010.0,118000.0,0.3678604]
[1752885802884,1.127971,118010.0,118000.0,0.3688604]
[1752885803082,0.55256842,118010.0,118000.0,0.3688604]
[1752885803285,0.67384987,118010.0,118000.0,0.4940204]
[1752885803489,0.67384987,118010.0,118000.0,0.82628005]
[1752885803682,0.67384987,118010.0,118000.0,0.5356404]
[1752885803882,0.67384987,118010.0,118000.0,0.85175974]
[1752885804082,0.767171,118010.0,118000.0,0.56112009]
[1752885804482,0.767171,118010.0,118000.0,0.85175974]
[1752885804881,0.5978128,118010.0,118000.0,0.85175974]
[1752885805083,0.30717315,118010.0,118000.0,0.92192009]
[1752885805277,0.38301617,118010.0,118000.0,0.92192009]
[1752885805488,0.30717315,118010.0,118000.0,0.92192009]
[1752885805688,0.41366567,118010.0,118000.0,0.92192009]
[1752885805887,0.41366567,118010.0,118000.0,0.56112009]
[1752885806186,0.30717315,118010.0,118000.0,0.92192009]
[1752885807286,0.30717315,118010.0,118000.0,0.56112009]
[1752885807484,0.30717315,118010.0,118000.0,0.92192009]
[1752885807888,0.36785364,118010.0,118000.0,0.56112009]
[1752885810885,0.36785364,118010.0,118000.0,0.92192009]
[1752885814385,0.30717315,118010.0,118000.0,0.92192009]
[1752885814690,0.36786841,118010.0,118000.0,0.92192009]
[1752885815191,0.30717315,118010.0,118000.0,0.92192009]
[1752885815692,0.36787676,118010.0,118000.0,0.92192009]
[1752885816188,0.30717315,118010.0,118000.0,0.92192009]
[1752885817894,0.38302328,118010.0,118000.0,0.92192009]
[1752885819487,0.38302328,118010.0,118000.0,0.90263297]
[1752885820087,0.38302328,118010.0,118000.0,0.54183297]
[1752885820289,0.30717315,118010.0,118000.0,0.54183297]
[1752885820497,0.38314095,118010.0,118000.0,0.54183297]
[1752885820692,0.6417621,118010.0,118000.0,0.54183297]
[1752885822593,1.0025621,118010.0,118000.0,0.54183297]
[1752885823290,0.74394095,118010.0,118000.0,0.54183297]
[1752885823496,1.0025621,118010.0,118000.0,0.54183297]
[1752885824797,1.1719202,118010.0,118000.0,0.54183297]
[1752885825098,1.20426943,118010.0,118000.0,0.54183297]
[1752885825498,1.12830163,118010.0,118000.0,0.54183297]
[1752885825797,1.12830163,118010.0,118000.0,0.50021297]
[1752885825992,1.20435149,118010.0,118000.0,0.40069297]
[1752885826198,1.12830163,118010.0,118000.0,0.40069297]
[1752885826501,0.83733125,118010.0,118000.0,0.40069297]
[1752885826698,1.12830163,118010.0,118000.0,0.50374297]
[1752885826895,0.57611315,118010.0,118000.0,0.79471335]
[1752885827202,0.57020101,118010.0,118000.0,1.13485335]
[1752885827698,0.67104101,118010.0,118000.0,0.69921297]
[1752885827891,1.12513173,118010.0,118000.0,0.80226297]
[1752885828094,1.12513173,118010.0,118000.0,0.69921297]
[1752885828296,1.12513173,118010.0,118000.0,0.40069297]
[1752885828501,1.12513173,118010.0,118000.0,0.69921297]
[1752885829102,1.23162425,118010.0,118000.0,0.69921297]
[1752885829500,1.12513173,118010.0,118000.0,0.67373328]
[1752885829797,1.23162425,118010.0,118000.0,0.67373328]
[1752885830699,0.77129567,118010.0,118000.0,0.6506781]
[1752885831002,1.23162425,118010.0,118000.0,0.5236562]
[1752885831200,1.23162425,118010.0,118000.0,0.6930212]
[1752885831396,1.12513173,118010.0,118000.0,0.67911141]
[1752885831597,0.76433173,118010.0,118000.0,0.67911141]
[1752885832097,1.12513173,118010.0,118000.0,0.67911141]
[1752885832598,1.23182014,118010.0,118000.0,0.67911141]
[1752885834599,1.23182014,118010.0,118000.0,0.78747141]
[1752885835995,1.06246194,118010.0,118000.0,0.78747141]
[1752885836401,0.87102014,118010.0,118000.0,0.78747141]
[1752885836603,1.23182014,118010.0,118000.0,0.78747141]
[1752885837798,1.06246194,118010.0,118000.0,0.78747141]
[1752885838199,1.06246194,118010.0,118000.0,0.82909141]
[1752885838400,0.70166194,118010.0,118000.0,0.82909141]
[1752885838901,0.70166194,118010.0,118000.0,1.13397158]
[1752885839098,0.27715156,118010.0,118000.0,1.13397158]
[1752885839293,0.56812194,118010.0,118000.0,1.12006273]
[1752885839497,0.59936194,118010.0,118000.0,1.12006273]
[1752885839702,0.68919194,118010.0,118000.0,1.12006273]
[1752885839897,0.70125194,118010.0,118000.0,1.12006273]
[1752885840400,0.70125194,118010.0,118000.0,1.13244273]
[1752885840800,0.57963966,118010.0,118000.0,0.54295235]
[1752885841002,1.23141004,118010.0,118000.0,0.45898925]
[1752885841206,1.23141004,118010.0,118000.0,0.35062925]
[1752885841510,1.23141004,118010.0,118000.0,0.32598925]
[1752885842304,1.23141004,118010.0,118000.0,0.2580781]
[1752885842505,1.12472163,118010.0,118000.0,0.21153288]
[1752885843007,1.12472163,118010.0,118000.0,0.19915288]
[1752885843603,1.27665756,118010.0,118000.0,0.05320791]
[1752885843809,1.27665756,118010.0,118000.0,0.22257291]
[1752885844010,1.27665756,118010.0,118000.0,0.169365]
[1752885844403,1.12472163,118010.0,118000.0,0.169365]
[1752885844605,0.1693724,118000.0,117990.0,0.28012827]
[1752885844812,1.25117771,118000.0,117990.0,0.2540674]
[1752885845211,1.55077771,118000.0,117990.0,0.2540674]
[1752885846206,1.55077771,118000.0,117990.0,0.2550674]
[1752885846505,1.39843278,118000.0,117990.0,0.2550674]
[1752885846702,1.39843278,118000.0,117990.0,0.23577746]
[1752885847602,1.39843278,118000.0,117990.0,0.23777746]
[1752885847805,1.1074624,118000.0,117990.0,0.23777746]
[1752885848011,1.39843278,118000.0,117990.0,0.23777746]
[1752885848913,1.39843278,118000.0,117990.0,0.23789955]
[1752885853712,1.39843278,118000.0,117990.0,0.36128955]
[1752885853914,1.39843278,118000.0,117990.0,0.65225993]
[1752885854218,1.45932803,118000.0,117990.0,0.36128955]
[1752885854418,1.16835765,118000.0,117990.0,0.36128955]
[1752885854621,1.45932803,118000.0,117990.0,0.36128955]
[1752885854821,1.39843278,118000.0,117990.0,0.36128955]
[1752885856223,1.45932636,118000.0,117990.0,0.23789955]
[1752885856424,1.45932636,118000.0,117990.0,0.25027955]
[1752885856625,1.16835598,118000.0,117990.0,0.25027955]
[1752885856926,1.45932636,118000.0,117990.0,0.25027955]
[1752885858326,1.39843278,118000.0,117990.0,0.25027955]
[1752885858522,1.39823278,118000.0,117990.0,0.36128955]
[1752885858722,1.39823278,118000.0,117990.0,0.67155117]
[1752885858922,1.3354497,118000.0,117990.0,0.38058079]
[1752885859118,1.3354497,118000.0,117990.0,0.67155117]
[1752885859323,1.5048221,118000.0,117990.0,0.67155117]
[1752885860328,1.5048221,118000.0,117990.0,0.38058079]
[1752885860529,1.47435327,118000.0,117990.0,0.67155117]
[1752885860724,1.47435327,118000.0,117990.0,0.38058079]
[1752885861024,1.47435327,118000.0,117990.0,0.67155117]
[1752885861727,1.18338289,118000.0,117990.0,0.67155117]
[1752885861929,0.35381049,118000.0,117990.0,1.03235117]
[1752885862122,0.35381049,118000.0,117990.0,1.07907117]
[1752885862426,0.35381049,118000.0,117990.0,1.37967155]
[1752885862427,0.14456,118000.0,117990.0,1.37967155]
[1752885862620,0.20546206,118000.0,117990.0,1.37967155]
[1752885863020,0.06090206,118000.0,117990.0,1.37967155]
[1752885864224,0.10753206,118000.0,117990.0,1.37967155]
[1752885864528,0.04663,118000.0,117990.0,1.37967155]
[1752885864829,0.15244,118000.0,117990.0,1.37967155]
[1752885865030,0.15244,118000.0,117990.0,1.05630547]
[1752885870833,0.21334206,118000.0,117990.0,1.03701839]
[1752885871933,0.10753206,118000.0,117990.0,1.03701839]
[1752885872133,0.04663,118000.0,117990.0,1.03701839]
[1752885872533,0.15244,118000.0,117990.0,1.03701839]
[1752885875331,0.04663,118000.0,117990.0,1.03701839]
[1752885875532,0.04663,118000.0,117990.0,1.33657839]
[1752885876127,0.15244,118000.0,117990.0,1.33657839]
[1752885876435,0.17291315,118010.0,118000.0,0.36120124]
[1752885876736,0.23381521,118010.0,118000.0,0.98057592]
[1752885877131,0.07810521,118010.0,118000.0,0.98057592]
[1752885877640,0.07810521,118010.0,118000.0,1.27577592]
[1752885877942,0.12800521,118010.0,118000.0,1.27577592]
[1752885878334,0.12800521,118010.0,118000.0,1.27677592]
[1752885878935,0.12800521,118010.0,118000.0,1.25749096]
[1752885879838,0.23381521,118010.0,118000.0,1.25749096]
[1752885882646,0.02893541,118010.0,118000.0,1.25749096]
[1752885882940,0.15571,118020.0,118010.0,0.319028]
[1752885883144,0.15571,118020.0,118010.0,1.26113268]
[1752885883339,0.15571,118020.0,118010.0,1.002558]
[1752885883742,0.1875,118020.0,118010.0,1.26113268]
[1752885883941,0.21226,118020.0,118010.0,1.26113268]
[1752885884145,0.1875,118020.0,118010.0,1.26113268]
[1752885884444,0.002,118020.0,118010.0,1.55633268]
[1752885884638,0.16073782,118030.0,118020.0,0.2484337]
[1752885884835,0.16073782,118030.0,118020.0,1.29930609]
[1752885885135,0.19252782,118030.0,118020.0,1.29930609]
[1752885885542,0.25973782,118030.0,118020.0,1.29930609]
[1752885885742,0.27184782,118030.0,118020.0,1.29930609]
[1752885886344,0.37765782,118030.0,118020.0,1.29930609]
[1752885887040,0.37765782,118030.0,118020.0,1.28002361]
[1752885889945,0.37765782,118030.0,118020.0,1.02144893]
[1752885890144,0.37765782,118030.0,118020.0,1.28002361]
[1752885891853,0.37765782,118030.0,118020.0,1.02144893]
[1752885892053,0.37765782,118030.0,118020.0,1.28002361]
[1752885892552,0.48424714,118030.0,118020.0,1.28002361]
[1752885894957,0.48424714,118030.0,118020.0,1.26074138]
[1752885896956,0.44737714,118030.0,118020.0,1.58371284]
[1752885897459,0.34078782,118030.0,118020.0,1.58371284]
[1752885897763,0.44737714,118030.0,118020.0,1.58371284]
[1752885898457,0.47230714,118030.0,118020.0,1.58371284]
[1752885899060,0.47230714,118030.0,118020.0,1.26063746]
[1752885899659,0.36571782,118030.0,118020.0,1.26063746]
[1752885899958,0.44177616,118030.0,118020.0,1.26063746]
[1752885900158,0.26834091,118030.0,118020.0,1.26063746]
[1752885900754,0.21167711,118030.0,118020.0,1.26063746]
[1752885900956,0.07605834,118030.0,118020.0,1.26063746]
[1752885901160,0.03740014,118030.0,118020.0,1.26063746]
[1752885901460,0.13151932,118040.0,118030.0,0.4340693]
[1752885901657,0.23308932,118040.0,118030.0,1.37790006]
[1752885901959,0.24506932,118040.0,118030.0,1.37790006]
[1752885902457,0.13848,118040.0,118030.0,1.37790006]
[1752885902762,0.003,118040.0,118030.0,1.67310006]
[1752885903257,0.06385438,118040.0,118030.0,1.67310006]
[1752885903460,0.06386025,118040.0,118030.0,1.67310006]
[1752885903666,0.13279271,118040.0,118030.0,1.67310006]
[1752885903857,0.06386025,118040.0,118030.0,1.67310006]
[1752885904260,0.16317025,118040.0,118030.0,1.67310006]
[1752885904858,0.21315025,118040.0,118030.0,1.67310006]
[1752885907266,0.23808025,118040.0,118030.0,1.67310006]
[1752885908471,0.17722,118040.0,118030.0,1.0957495]
[1752885908659,0.17722,118040.0,118030.0,1.65378026]
[1752885909268,0.17722,118040.0,118030.0,1.3953095]
[1752885909469,0.17722,118040.0,118030.0,1.65378026]
[1752885910969,0.15229,118040.0,118030.0,1.65378026]
[1752885911563,0.22839775,118040.0,118030.0,1.3953095]
[1752885911867,0.15229,118040.0,118030.0,1.3953095]
[1752885912068,0.15229,118040.0,118030.0,1.65378026]
[1752885912263,0.17722,118040.0,118030.0,1.65378026]
[1752885912569,0.25332775,118040.0,118030.0,1.65378026]
[1752885914970,0.22839775,118040.0,118030.0,1.65378026]
[1752885916072,0.22839775,118040.0,118030.0,1.3953095]
[1752885916273,0.22839775,118040.0,118030.0,1.65378026]
[1752885916573,0.22839775,118040.0,118030.0,1.63450046]
[1752885918375,0.22839775,118040.0,118030.0,1.3760297]
[1752885918567,0.22839775,118040.0,118030.0,1.63450046]
[1752885919066,0.22839775,118040.0,118030.0,1.66676714]
[1752885919876,0.25332775,118040.0,118030.0,1.66676714]
[1752885924385,0.28438775,118040.0,118030.0,1.66676714]
[1752885924585,0.28438775,118040.0,118030.0,1.64748734]
[1752885924885,0.36687775,118040.0,118030.0,1.64748734]
[1752885925486,0.38420304,118040.0,118030.0,1.64748734]
[1752885925882,0.38420304,118040.0,118030.0,2.00828734]
[1752885926387,0.38420304,118040.0,118030.0,1.7175499]
[1752885926686,0.38420304,118040.0,118030.0,2.00828734]
[1752885927381,0.38420304,118040.0,118030.0,1.28668734]
[1752885927581,0.38420304,118040.0,118030.0,2.00828734]
[1752885929388,0.38420304,118040.0,118030.0,1.99438364]
[1752885929887,0.38420304,118040.0,118030.0,1.7036462]
[1752885930088,0.38420304,118040.0,118030.0,1.99438364]
[1752885931987,0.38420304,118040.0,118030.0,1.14100222]
[1752885931988,0.59883273,118040.0,118030.0,1.14100222]
[1752885932188,1.06622205,118040.0,118030.0,0.78020222]
[1752885932584,1.06622205,118040.0,118030.0,0.8794893]
[1752885932788,1.06622205,118040.0,118030.0,1.17022674]
[1752885932977,0.70542205,118040.0,118030.0,1.17022674]
[1752885933780,0.68809676,118040.0,118030.0,1.21671674]
[1752885933988,0.68809676,118040.0,118030.0,1.24161674]
[1752885934384,0.76428501,118040.0,118030.0,1.24161674]
[1752885934882,0.36695825,118040.0,118030.0,0.9508793]
[1752885935287,0.29077,118040.0,118030.0,0.9508793]
[1752885935690,0.29077,118040.0,118030.0,1.0528993]
[1752885936695,0.29077,118040.0,118030.0,0.7576993]
[1752885938591,0.1693293,118030.0,118020.0,0.572472]
[1752885938792,0.3500437,118020.0,118010.0,0.200958]
[1752885939093,1.03027966,118020.0,118010.0,0.469318]
[1752885939296,1.13903966,118020.0,118010.0,0.469318]
[1752885939692,1.13903966,118020.0,118010.0,0.169358]
[1752885940094,1.49756685,118020.0,118010.0,0.169358]
[1752885940292,1.60415617,118020.0,118010.0,0.119358]
[1752885940595,1.55209207,118020.0,118000.0,0.12692677]
[1752885940796,0.96297532,118010.0,118000.0,0.29629917]
[1752885941094,1.41730532,118010.0,118000.0,0.29629917]
[1752885941294,1.58679332,118010.0,118000.0,0.29629917]
[1752885941996,1.6036317,118010.0,118000.0,0.32119917]
[1752885942495,1.52751553,118010.0,118000.0,0.32119917]
[1752885942794,1.63410485,118010.0,118000.0,0.32119917]
[1752885943392,1.63410485,118010.0,118000.0,0.32219917]
[1752885943700,1.3756137,118010.0,118000.0,0.32219917]
[1752885944000,1.52751553,118010.0,118000.0,0.2809554]
[1752885944291,1.52751553,118010.0,118000.0,0.3232976]
[1752885944997,1.67986046,118010.0,118000.0,0.3232976]
[1752885945696,1.51037246,118010.0,118000.0,0.4253176]
[1752885945897,1.35802753,118010.0,118000.0,0.4253176]
[1752885947799,0.99722753,118010.0,118000.0,0.4253176]
[1752885948092,1.35802753,118010.0,118000.0,0.4253176]
[1752885948296,1.4641709,118010.0,118000.0,0.4253176]
[1752885948999,1.4641709,118010.0,118000.0,0.3829754]
[1752885952801,1.35802753,118010.0,118000.0,0.3829754]
[1752885953996,1.35802753,118010.0,118000.0,0.002]
[1752885954295,1.43377126,118010.0,118000.0,0.002]
[1752885958106,1.4641709,118010.0,118000.0,0.002]
[1752885960304,1.4641709,118010.0,118000.0,0.00063589]
[1752885961903,1.4641709,118010.0,118000.0,0.15071735]
[1752885962504,1.4641709,118010.0,117990.0,0.2549298]
[1752885962505,0.1693723,118000.0,117990.0,0.467499]
[1752885962705,1.11911536,118000.0,117990.0,0.547409]
[1752885963007,1.10395298,118000.0,117990.0,0.547409]
[1752885964510,1.10395298,118000.0,117990.0,0.548409]
[1752885965805,1.10395298,118000.0,117990.0,0.551409]
[1752885967114,1.34206345,118000.0,117990.0,0.551409]
[1752885967813,0.76756115,118000.0,117990.0,0.551409]
[1752885968014,1.06632115,118000.0,117990.0,0.551409]
[1752885968415,0.80783,118000.0,117990.0,0.551409]
[1752885968915,1.09884178,118000.0,117990.0,0.551409]
[1752885969516,1.26821408,118000.0,117990.0,0.551409]
[1752885970118,1.37458408,118000.0,117990.0,0.551409]
[1752885971118,1.34227003,118000.0,117990.0,0.551409]
[1752885972118,1.40316422,118000.0,117990.0,0.551409]
[1752885972417,1.34227003,118000.0,117990.0,0.551409]
[1752885973919,1.0835723,118000.0,117990.0,0.551409]
[1752885974119,1.34227003,118000.0,117990.0,0.551409]
[1752885974317,0.9142,118000.0,117990.0,0.551409]
[1752885974522,1.17289773,118000.0,117990.0,0.551409]
[1752885974923,1.0835723,118000.0,117990.0,0.551409]
[1752885975120,0.07982,118000.0,117990.0,0.81010673]
[1752885975321,1.00139099,118010.0,118000.0,0.4627123]
[1752885975619,0.80141245,118010.0,118000.0,0.4627123]
[1752885975819,0.90778245,118010.0,118000.0,0.4627123]
[1752885976123,1.06033681,118010.0,118000.0,0.4627123]
[1752885976425,1.06033681,118010.0,118000.0,0.4647123]
[1752885979324,1.06033681,118010.0,118000.0,0.445424]
[1752885979528,1.06033681,118010.0,118000.0,0.457354]
[1752885979822,1.06033681,118010.0,118000.0,0.44344417]
[1752885980024,1.06033681,118010.0,118000.0,0.44828945]
[1752885980528,0.90342611,118010.0,118000.0,0.44828945]
[1752885981024,0.17755838,118010.0,118000.0,0.44828945]
[1752885981228,0.27174974,118010.0,118000.0,0.80908945]
[1752885981724,0.16510838,118010.0,118000.0,0.80908945]
[1752885981928,0.09665838,118010.0,118000.0,0.80908945]
[1752885982528,0.09665838,118010.0,118000.0,0.72246652]
[1752885982529,0.16510838,118010.0,118000.0,0.72246652]
[1752885982730,0.42382331,118010.0,118000.0,0.72246652]
[1752885986239,0.43552331,118010.0,118000.0,0.60801443]
[1752885987437,0.43552331,118010.0,118000.0,0.58872748]
[1752885988340,0.43552331,118010.0,118000.0,0.74626748]
[1752885989437,0.69422104,118010.0,118000.0,0.74626748]
[1752885989637,0.71918104,118010.0,118000.0,0.74626748]
[1752885990042,0.88853904,118010.0,118000.0,0.74626748]
[1752885990538,0.88853904,118010.0,118000.0,0.71664748]
[1752885990843,0.56683611,118010.0,118000.0,0.71664748]
[1752885991144,1.09699411,118010.0,118000.0,0.35584748]
[1752885991442,1.09699411,118010.0,118000.0,0.14612748]
[1752885991644,1.24933904,118010.0,118000.0,0.14612748]
[1752885992544,1.24933904,118010.0,118000.0,0.10998748]
[1752885992545,1.35591467,118010.0,118000.0,0.10998748]
[1752885992742,1.43204012,118010.0,118000.0,0.10998748]
[1752885992941,1.32546449,118010.0,118000.0,0.10998748]
[1752885993142,1.17311956,118010.0,118000.0,0.10998748]
[1752885993542,1.09699411,118010.0,118000.0,0.10998748]
[1752885994545,1.20356974,118010.0,118000.0,0.10998748]
[1752885995244,1.20356974,118010.0,118000.0,0.09069872]
[1752885998549,0.94487201,118010.0,118000.0,0.09069872]
[1752885998849,1.20356974,118010.0,118000.0,0.09069872]
[1752885999846,0.94487201,118010.0,118000.0,0.09069872]
[1752886000058,0.94487201,118010.0,118000.0,0.33062872]
[1752886000354,0.41471401,118010.0,118000.0,0.36024872]
[1752886000853,0.35932437,118010.0,118000.0,0.72104872]
[1752886001056,0.28317838,118010.0,118000.0,0.72104872]
[1752886001352,0.38975401,118010.0,118000.0,0.72104872]
[1752886001748,0.38975401,118010.0,118000.0,1.02120872]
[1752886003357,0.38975401,118010.0,118000.0,1.0019215]
[1752886006058,0.55911201,118010.0,118000.0,1.0019215]
[1752886006258,0.84276974,118010.0,118000.0,0.8685915]
[1752886006958,0.47749638,118010.0,118000.0,0.9723015]
[1752886007157,0.73619411,118010.0,118000.0,0.9723015]
[1752886008458,0.47749638,118010.0,118000.0,0.9723015]
[1752886008660,0.73619411,118010.0,118000.0,0.9723015]
[1752886008857,0.56683611,118010.0,118000.0,0.9723015]
[1752886009059,0.67344371,118010.0,118000.0,0.9723015]
[1752886010256,0.84280171,118010.0,118000.0,0.9723015]
[1752886010861,0.67344371,118010.0,118000.0,0.9723015]
[1752886011360,0.67344371,118010.0,118000.0,0.90289]
[1752886011560,0.84280171,118010.0,118000.0,1.0722623]
[1752886011861,0.67344371,118010.0,118000.0,1.0722623]
[1752886012862,0.84280171,118010.0,118000.0,1.0722623]
[1752886013058,0.84280171,118010.0,118000.0,1.1018823]
[1752886013258,0.67344371,118010.0,118000.0,1.1018823]
[1752886013460,0.67344371,118010.0,118000.0,1.10199624]
[1752886014253,0.84280171,118010.0,118000.0,1.10199624]
[1752886015967,0.84280171,118010.0,118000.0,1.07237624]
[1752886018765,0.58410398,118010.0,118000.0,1.07237624]
[1752886018965,0.84280171,118010.0,118000.0,1.07237624]
[1752886019469,0.84280171,118010.0,118000.0,1.05308884]
[1752886020169,0.58410398,118010.0,118000.0,1.05308884]
[1752886020370,0.84280171,118010.0,118000.0,1.05308884]
[1752886021769,0.84280171,118010.0,118000.0,1.03917966]
[1752886024367,0.67344371,118010.0,118000.0,1.03917966]
[1752886024667,0.41474598,118010.0,118000.0,1.03917966]
[1752886026275,0.67344371,118010.0,118000.0,1.03917966]
[1752886027375,0.67344371,118010.0,118000.0,1.01989228]
[1752886027875,0.41474598,118010.0,118000.0,1.01989228]
[1752886029581,0.24851952,118010.0,118000.0,1.27859001]
[1752886029775,0.17231598,118010.0,118000.0,1.27859001]
[1752886030375,0.141908,118010.0,118000.0,1.27859001]
[1752886031478,0.093038,118010.0,118000.0,1.57379001]
[1752886032675,0.01683838,118010.0,118000.0,1.57379001]
[1752886032874,0.17068598,118010.0,118000.0,1.57379001]
[1752886034079,0.1066076,118010.0,118000.0,1.57379001]
[1752886034483,0.07612557,118010.0,118000.0,1.57379001]
[1752886035082,0.1538476,118020.0,118010.0,0.382968]
[1752886035272,0.18717,118020.0,118010.0,0.83310773]
[1752886035471,0.18717,118020.0,118010.0,0.98318116]
[1752886035675,0.21048,118020.0,118010.0,0.99498116]
[1752886036580,0.21148,118020.0,118010.0,0.99498116]
[1752886037083,0.21248,118020.0,118010.0,0.99498116]
[1752886037277,0.21248,118020.0,118010.0,1.29018116]
[1752886037482,0.31898082,118020.0,118010.0,1.29018116]
[1752886037781,0.18917,118020.0,118010.0,1.29018116]
[1752886039384,0.29571271,118020.0,118010.0,1.29018116]
[1752886042491,0.37180147,118020.0,118010.0,1.29018116]
[1752886042692,0.26525876,118020.0,118010.0,1.03148343]
[1752886042880,0.37426876,118020.0,118010.0,1.03148343]
[1752886043283,0.29818,118020.0,118010.0,1.03148343]
[1752886043484,0.29818,118020.0,118010.0,1.01219949]
[1752886044584,0.37426876,118020.0,118010.0,1.27089722]
[1752886047493,0.37426876,118020.0,118010.0,1.01219949]
[1752886048893,0.66515211,118020.0,118010.0,1.30308284]
[1752886049796,0.37426876,118020.0,118010.0,1.30308284]
[1752886050497,0.58906335,118020.0,118010.0,1.30308284]
[1752886052197,0.29818,118020.0,118010.0,1.30308284]
[1752886052398,0.58906335,118020.0,118010.0,1.30308284]
[1752886056495,0.66515211,118020.0,118010.0,1.01219949]
[1752886056797,0.66515211,118020.0,118010.0,1.60216284]
[1752886057599,0.66515211,118020.0,118010.0,1.31127949]
[1752886057802,0.66515211,118020.0,118010.0,1.60216284]
[1752886058299,0.66515211,118020.0,118010.0,1.58287914]
[1752886059095,0.37426876,118020.0,118010.0,1.58287914]
[1752886059297,0.66515211,118020.0,118010.0,1.58287914]
[1752886059598,0.29818,118020.0,118010.0,1.58287914]
[1752886060301,0.29818,118020.0,118010.0,1.29199579]
[1752886060498,0.29818,118020.0,118010.0,1.58287914]
[1752886060894,0.66531424,118020.0,118010.0,1.29199579]
[1752886061099,0.66531424,118020.0,118010.0,1.58287914]
[1752886061302,0.95619759,118020.0,118010.0,0.80280579]
[1752886061596,1.0492903,118020.0,118010.0,0.80280579]
[1752886061900,1.12555495,118020.0,118010.0,0.80280579]
[1752886062804,0.95621135,118020.0,118010.0,0.80280579]
[1752886063998,1.12555495,118020.0,118010.0,0.80280579]
[1752886064803,1.0492903,118020.0,118010.0,0.80280579]
[1752886065002,1.15583301,118020.0,118010.0,0.75001026]